[Event "January 9 Early 2024"]
[Site "https://www.chess.com"]
[Date "2024.01.11"]
[Round "4"]
[White "Chigaev, Maksim"]
[Black "Krzyzanowski, Marcin"]
[Result "1-0"]
[Board "165"]
[TimeControl "180+1"]
[WhiteFideId "4108116"]
[BlackFideId "1132199"]
[WhiteElo "2964"]
[BlackElo "2789"]
[WhiteTeam "ESP"]
[BlackTeam "POL"]
[WhiteClock "0:00:22"]
[BlackClock "0:00:03"]

1. c4 {[%clk 0:03:00]}  e5 {[%clk 0:02:59]} 2. Nc3 {[%clk 0:02:59]}  Nf6 {[%clk 0:02:59]} 3. Nf3 {[%clk 0:03:00]}  Nc6 {[%clk 0:02:58]} 4. g3 {[%clk 0:03:00]}  Bb4 {[%clk 0:02:54]} 5. Bg2 {[%clk 0:03:00]}  O-O {[%clk 0:02:52]} 6. Nd5 {[%clk 0:03:00]}  a5 {[%clk 0:02:52]} 7. a3 {[%clk 0:02:55]}  Bc5 {[%clk 0:02:50]} 8. O-O {[%clk 0:02:41]}  h6 {[%clk 0:02:48]} 9. Nxe5 {[%clk 0:02:38]}  Nxe5 {[%clk 0:02:42]} 10. d4 {[%clk 0:02:38]}  Bd6 {[%clk 0:02:27]} 11. c5 {[%clk 0:02:26]}  Nc4 {[%clk 0:02:09]} 12. Nxf6+ {[%clk 0:02:19]}  Qxf6 {[%clk 0:02:08]} 13. cxd6 {[%clk 0:02:18]}  Nxd6 {[%clk 0:02:01]} 14. e4 {[%clk 0:02:18]}  Qe7 {[%clk 0:01:59]} 15. e5 {[%clk 0:02:16]}  Nf5 {[%clk 0:01:58]} 16. Re1 {[%clk 0:02:09]}  d6 {[%clk 0:01:51]} 17. Bf4 {[%clk 0:02:09]}  dxe5 {[%clk 0:01:47]} 18. Rxe5 {[%clk 0:02:04]}  Qd8 {[%clk 0:01:44]} 19. d5 {[%clk 0:02:04]}  Nd6 {[%clk 0:01:43]} 20. Rc1 {[%clk 0:02:03]}  a4 {[%clk 0:01:39]} 21. h4 {[%clk 0:02:01]}  Bf5 {[%clk 0:01:33]} 22. Qd4 {[%clk 0:01:47]}  Bh7 {[%clk 0:01:31]} 23. Re2 {[%clk 0:01:46]}  Qd7 {[%clk 0:01:26]} 24. Qc5 {[%clk 0:01:36]}  Rfc8 {[%clk 0:01:03]} 25. Rce1 {[%clk 0:01:36]}  b6 {[%clk 0:00:57]} 26. Qc6 {[%clk 0:01:31]}  Qxc6 {[%clk 0:00:45]} 27. dxc6 {[%clk 0:01:30]}  Nb5 {[%clk 0:00:46]} 28. Re7 {[%clk 0:01:11]}  Bf5 {[%clk 0:00:41]} 29. R1e5 {[%clk 0:01:01]}  Nd6 {[%clk 0:00:29]} 30. Re1 {[%clk 0:00:55]}  Nb5 {[%clk 0:00:28]} 31. Bd5 {[%clk 0:00:46]}  Bg6 {[%clk 0:00:24]} 32. Rd7 {[%clk 0:00:45]}  Re8 {[%clk 0:00:22]} 33. Rxe8+ {[%clk 0:00:36]}  Rxe8 {[%clk 0:00:23]} 34. Bxc7 {[%clk 0:00:36]}  Re1+ {[%clk 0:00:20]} 35. Kg2 {[%clk 0:00:31]}  Nxc7 {[%clk 0:00:05]} 36. Rxc7 {[%clk 0:00:32]}  Rd1 {[%clk 0:00:03]} 37. Bf3 {[%clk 0:00:22]}  Bf5 {[%clk 0:00:03]} 38. Bxd1 {[%clk 0:00:22]} 1-0

[Event "January 9 Early 2024"]
[Site "https://www.chess.com"]
[Date "2024.01.11"]
[Round "4"]
[White "Yurovskykh, Oleksandr"]
[Black "Gavrilov, Maxim"]
[Result "1-0"]
[Board "171"]
[TimeControl "180+1"]
[WhiteFideId "14134020"]
[BlackFideId "24271454"]
[WhiteElo "2624"]
[BlackElo "2451"]
[WhiteTeam "UKR"]
[BlackTeam "RUS"]
[WhiteClock "0:00:06"]
[BlackClock "0:00:21"]

1. d4 {[%clk 0:03:00]}  Nf6 {[%clk 0:02:59]} 2. Nf3 {[%clk 0:02:58]}  d5 {[%clk 0:02:59]} 3. c3 {[%clk 0:02:57]}  Bf5 {[%clk 0:02:57]} 4. Qb3 {[%clk 0:02:57]}  Qc8 {[%clk 0:02:57]} 5. Bg5 {[%clk 0:02:57]}  Nbd7 {[%clk 0:02:56]} 6. e3 {[%clk 0:02:57]}  e6 {[%clk 0:02:56]} 7. c4 {[%clk 0:02:58]}  c6 {[%clk 0:02:55]} 8. Nc3 {[%clk 0:02:58]}  Be7 {[%clk 0:02:53]} 9. Rc1 {[%clk 0:02:58]}  O-O {[%clk 0:02:45]} 10. Nh4 {[%clk 0:02:57]}  Bg6 {[%clk 0:02:37]} 11. Nxg6 {[%clk 0:02:57]}  hxg6 {[%clk 0:02:37]} 12. Be2 {[%clk 0:02:54]}  dxc4 {[%clk 0:02:33]} 13. Bxc4 {[%clk 0:02:52]}  c5 {[%clk 0:02:31]} 14. Bxf6 {[%clk 0:02:37]}  Bxf6 {[%clk 0:02:23]} 15. d5 {[%clk 0:02:36]}  exd5 {[%clk 0:02:14]} 16. Nxd5 {[%clk 0:02:34]}  b6 {[%clk 0:02:12]} 17. h4 {[%clk 0:02:08]}  Ne5 {[%clk 0:01:53]} 18. h5 {[%clk 0:01:53]}  gxh5 {[%clk 0:01:37]} 19. Nxf6+ {[%clk 0:01:43]}  gxf6 {[%clk 0:01:38]} 20. Rxh5 {[%clk 0:01:42]}  Qg4 {[%clk 0:01:35]} 21. Rh2 {[%clk 0:01:01]}  Nf3+ {[%clk 0:01:34]} 22. gxf3 {[%clk 0:01:00]}  Qg1+ {[%clk 0:01:34]} 23. Bf1 {[%clk 0:00:55]}  Qxh2 {[%clk 0:01:35]} 24. Rc4 {[%clk 0:00:55]}  Rfd8 {[%clk 0:01:24]} 25. Rg4+ {[%clk 0:00:50]}  Kf8 {[%clk 0:01:24]} 26. Qc4 {[%clk 0:00:48]}  Qd6 {[%clk 0:01:21]} 27. Be2 {[%clk 0:00:43]}  Qe5 {[%clk 0:01:15]} 28. Qc2 {[%clk 0:00:31]}  f5 {[%clk 0:01:09]} 29. Rf4 {[%clk 0:00:29]}  Rd6 {[%clk 0:00:54]} 30. Rxf5 {[%clk 0:00:25]}  Qg7 {[%clk 0:00:52]} 31. Bc4 {[%clk 0:00:23]}  f6 {[%clk 0:00:41]} 32. Bd5 {[%clk 0:00:16]}  Re8 {[%clk 0:00:39]} 33. e4 {[%clk 0:00:16]}  Re5 {[%clk 0:00:38]} 34. Rxe5 {[%clk 0:00:13]}  fxe5 {[%clk 0:00:39]} 35. Qa4 {[%clk 0:00:13]}  Qc7 {[%clk 0:00:36]} 36. Ke2 {[%clk 0:00:12]}  Rf6 {[%clk 0:00:36]} 37. Qd1 {[%clk 0:00:12]}  Qg7 {[%clk 0:00:33]} 38. Qh1 {[%clk 0:00:07]}  Ke7 {[%clk 0:00:31]} 39. Qh5 {[%clk 0:00:06]}  Qg2 {[%clk 0:00:26]} 40. Qxe5+ {[%clk 0:00:06]}  Re6 {[%clk 0:00:20]} 41. Qxe6+ {[%clk 0:00:06]}  Kf8 {[%clk 0:00:21]} 42. Qf7# {[%clk 0:00:06]} 1-0

[Event "January 9 Early 2024"]
[Site "https://www.chess.com"]
[Date "2024.01.11"]
[Round "4"]
[White "Viana, Valeria"]
[Black "Topalov, Aleksandar"]
[Result "0-1"]
[Board "172"]
[TimeControl "180+1"]
[WhiteFideId "8407100"]
[BlackFideId "925659"]
[WhiteElo "2099"]
[BlackElo "2441"]
[WhiteTeam "HON"]
[BlackTeam "SRB"]
[WhiteClock "0:00:12"]
[BlackClock "0:00:15"]

1. e4 {[%clk 0:03:00]}  e6 {[%clk 0:02:46]} 2. d4 {[%clk 0:02:56]}  d5 {[%clk 0:02:44]} 3. exd5 {[%clk 0:02:51]}  exd5 {[%clk 0:02:41]} 4. Bd3 {[%clk 0:02:51]}  Bd6 {[%clk 0:02:40]} 5. Ne2 {[%clk 0:02:50]}  Ne7 {[%clk 0:02:40]} 6. O-O {[%clk 0:02:47]}  O-O {[%clk 0:02:40]} 7. Bf4 {[%clk 0:02:42]}  Nbc6 {[%clk 0:02:36]} 8. c3 {[%clk 0:02:41]}  Ng6 {[%clk 0:02:34]} 9. Bg3 {[%clk 0:02:22]}  Nce7 {[%clk 0:02:20]} 10. Qc2 {[%clk 0:02:19]}  f5 {[%clk 0:01:57]} 11. f4 {[%clk 0:02:00]}  c5 {[%clk 0:01:49]} 12. Bb5 {[%clk 0:01:50]}  a6 {[%clk 0:01:45]} 13. Ba4 {[%clk 0:01:46]}  b5 {[%clk 0:01:45]} 14. Bb3 {[%clk 0:01:32]}  c4 {[%clk 0:01:44]} 15. Nd2 {[%clk 0:01:28]}  Bd7 {[%clk 0:01:35]} 16. Nf3 {[%clk 0:01:23]}  cxb3 {[%clk 0:01:26]} 17. Qxb3 {[%clk 0:01:22]}  Kh8 {[%clk 0:01:25]} 18. Ne5 {[%clk 0:01:19]}  Bxe5 {[%clk 0:01:21]} 19. dxe5 {[%clk 0:01:19]}  Be6 {[%clk 0:01:15]} 20. Nd4 {[%clk 0:01:17]}  Qd7 {[%clk 0:01:15]} 21. a4 {[%clk 0:01:13]}  bxa4 {[%clk 0:01:08]} 22. Rxa4 {[%clk 0:01:10]}  Rfb8 {[%clk 0:01:07]} 23. Qa2 {[%clk 0:01:07]}  Rb6 {[%clk 0:00:54]} 24. Ra1 {[%clk 0:00:54]}  Nc6 {[%clk 0:00:52]} 25. Ne2 {[%clk 0:00:43]}  d4 {[%clk 0:00:48]} 26. Qa3 {[%clk 0:00:41]}  dxc3 {[%clk 0:00:46]} 27. Nxc3 {[%clk 0:00:38]}  h6 {[%clk 0:00:45]} 28. Bf2 {[%clk 0:00:36]}  Rb7 {[%clk 0:00:39]} 29. g3 {[%clk 0:00:33]}  a5 {[%clk 0:00:37]} 30. Rd1 {[%clk 0:00:28]}  Qe8 {[%clk 0:00:32]} 31. Rd6 {[%clk 0:00:27]}  Rab8 {[%clk 0:00:31]} 32. Qc5 {[%clk 0:00:20]}  Nd8 {[%clk 0:00:25]} 33. Rxa5 {[%clk 0:00:18]}  Rxb2 {[%clk 0:00:23]} 34. Ra7 {[%clk 0:00:16]}  R2b7 {[%clk 0:00:17]} 35. Rxb7 {[%clk 0:00:14]}  Rxb7 {[%clk 0:00:17]} 36. Nb5 {[%clk 0:00:12]}  Rxb5 {[%clk 0:00:15]} 0-1

[Event "January 9 Early 2024"]
[Site "https://www.chess.com"]
[Date "2024.01.11"]
[Round "4"]
[White "Wantiez, Fabrice"]
[Black "Maltsevskaya, Aleksandra"]
[Result "1/2-1/2"]
[Board "173"]
[TimeControl "180+1"]
[WhiteFideId "202274"]
[BlackFideId "24174041"]
[WhiteElo "2405"]
[BlackElo "2567"]
[WhiteTeam "BEL"]
[BlackTeam "POL"]
[WhiteClock "0:00:49"]
[BlackClock "0:00:06"]

1. e4 {[%clk 0:03:00]}  c6 {[%clk 0:02:38]} 2. d4 {[%clk 0:03:00]}  d5 {[%clk 0:02:37]} 3. Nc3 {[%clk 0:03:01]}  dxe4 {[%clk 0:02:37]} 4. Nxe4 {[%clk 0:03:02]}  Nf6 {[%clk 0:02:37]} 5. Nxf6+ {[%clk 0:03:02]}  exf6 {[%clk 0:02:38]} 6. Nf3 {[%clk 0:03:03]}  Bd6 {[%clk 0:02:39]} 7. g3 {[%clk 0:03:03]}  O-O {[%clk 0:02:39]} 8. Bg2 {[%clk 0:03:04]}  Re8+ {[%clk 0:02:40]} 9. Be3 {[%clk 0:03:05]}  Qb6 {[%clk 0:02:34]} 10. O-O {[%clk 0:03:05]}  Qxb2 {[%clk 0:02:34]} 11. c4 {[%clk 0:03:05]}  Nd7 {[%clk 0:02:29]} 12. c5 {[%clk 0:02:58]}  Bf8 {[%clk 0:02:26]} 13. Qa4 {[%clk 0:02:56]}  b5 {[%clk 0:02:13]} 14. cxb6 {[%clk 0:02:45]}  Nxb6 {[%clk 0:02:12]} 15. Qxc6 {[%clk 0:02:42]}  Ba6 {[%clk 0:02:07]} 16. Rfb1 {[%clk 0:02:38]}  Qa3 {[%clk 0:01:56]} 17. Nd2 {[%clk 0:02:13]}  Rac8 {[%clk 0:01:43]} 18. Qf3 {[%clk 0:02:13]}  Rc2 {[%clk 0:01:36]} 19. Nb3 {[%clk 0:01:40]}  Be2 {[%clk 0:01:19]} 20. Qb7 {[%clk 0:01:35]}  Rxa2 {[%clk 0:01:12]} 21. Qc6 {[%clk 0:01:20]}  Rc8 {[%clk 0:01:02]} 22. Qe4 {[%clk 0:01:20]}  Rxa1 {[%clk 0:00:54]} 23. Rxa1 {[%clk 0:01:18]}  Qxb3 {[%clk 0:00:50]} 24. Bh3 {[%clk 0:01:19]}  Rd8 {[%clk 0:00:24]} 25. Bd2 {[%clk 0:01:05]}  Bf3 {[%clk 0:00:23]} 26. Qe3 {[%clk 0:01:00]}  Qxe3 {[%clk 0:00:23]} 27. fxe3 {[%clk 0:01:01]}  Nc4 {[%clk 0:00:22]} 28. Bc1 {[%clk 0:01:01]}  a5 {[%clk 0:00:19]} 29. Bf1 {[%clk 0:01:01]}  Bd5 {[%clk 0:00:17]} 30. e4 {[%clk 0:01:02]}  Be6 {[%clk 0:00:10]} 31. d5 {[%clk 0:01:02]}  Bc5+ {[%clk 0:00:11]} 32. Kg2 {[%clk 0:01:00]}  Ne3+ {[%clk 0:00:05]} 33. Bxe3 {[%clk 0:01:00]}  Bxe3 {[%clk 0:00:06]} 34. dxe6 {[%clk 0:01:00]}  fxe6 {[%clk 0:00:07]} 35. Bc4 {[%clk 0:01:00]}  Rd2+ {[%clk 0:00:05]} 36. Kf3 {[%clk 0:01:00]}  Bd4 {[%clk 0:00:06]} 37. Rxa5 {[%clk 0:00:58]}  Kf7 {[%clk 0:00:03]} 38. h4 {[%clk 0:00:52]}  h5 {[%clk 0:00:02]} 39. Be2 {[%clk 0:00:49]}  Kg6 {[%clk 0:00:01]} 40. Ra3 {[%clk 0:00:42]}  Be5 {[%clk 0:00:02]} 41. Rd3 {[%clk 0:00:41]}  Rxd3+ {[%clk 0:00:02]} 42. Bxd3 {[%clk 0:00:42]}  Kf7 {[%clk 0:00:02]} 43. Be2 {[%clk 0:00:42]}  g6 {[%clk 0:00:03]} 44. Bd3 {[%clk 0:00:43]}  Ke7 {[%clk 0:00:03]} 45. g4 {[%clk 0:00:44]}  hxg4+ {[%clk 0:00:03]} 46. Kxg4 {[%clk 0:00:44]}  Kf7 {[%clk 0:00:03]} 47. h5 {[%clk 0:00:45]}  gxh5+ {[%clk 0:00:03]} 48. Kxh5 {[%clk 0:00:46]}  Bd6 {[%clk 0:00:03]} 49. Kg4 {[%clk 0:00:47]}  Kg6 {[%clk 0:00:03]} 50. Bc4 {[%clk 0:00:47]}  f5+ {[%clk 0:00:04]} 51. exf5+ {[%clk 0:00:47]}  exf5+ {[%clk 0:00:05]} 52. Kf3 {[%clk 0:00:47]}  Be7 {[%clk 0:00:05]} 53. Bd3 {[%clk 0:00:48]}  Kf6 {[%clk 0:00:06]} 54. Bxf5 {[%clk 0:00:49]} 1/2-1/2

[Event "January 9 Early 2024"]
[Site "https://www.chess.com"]
[Date "2024.01.11"]
[Round "4"]
[White "Darmanin, Jake"]
[Black "Nikulina, Alena"]
[Result "0-1"]
[Board "176"]
[TimeControl "180+1"]
[WhiteFideId "5601061"]
[BlackFideId "4172051"]
[WhiteElo "2304"]
[BlackElo "2125"]
[WhiteTeam "MLT"]
[BlackTeam "RUS"]
[WhiteClock "0:00:03"]
[BlackClock "0:00:07"]

1. e4 {[%clk 0:03:00]}  c5 {[%clk 0:02:59]} 2. Nf3 {[%clk 0:03:01]}  e6 {[%clk 0:02:59]} 3. c3 {[%clk 0:03:01]}  d5 {[%clk 0:02:57]} 4. exd5 {[%clk 0:03:01]}  exd5 {[%clk 0:02:58]} 5. d4 {[%clk 0:03:01]}  Nf6 {[%clk 0:02:58]} 6. Bb5+ {[%clk 0:02:54]}  Nc6 {[%clk 0:02:58]} 7. O-O {[%clk 0:02:54]}  Bd6 {[%clk 0:02:56]} 8. dxc5 {[%clk 0:02:53]}  Bxc5 {[%clk 0:02:56]} 9. Nbd2 {[%clk 0:02:52]}  O-O {[%clk 0:02:55]} 10. Nb3 {[%clk 0:02:53]}  Bb6 {[%clk 0:02:54]} 11. Bg5 {[%clk 0:02:53]}  Be6 {[%clk 0:02:53]} 12. Nbd4 {[%clk 0:02:51]}  Nxd4 {[%clk 0:02:40]} 13. Nxd4 {[%clk 0:02:50]}  h6 {[%clk 0:02:34]} 14. Bh4 {[%clk 0:02:45]}  g5 {[%clk 0:02:32]} 15. Bg3 {[%clk 0:02:43]}  Ne4 {[%clk 0:02:32]} 16. Qh5 {[%clk 0:02:33]}  Qf6 {[%clk 0:02:29]} 17. Kh1 {[%clk 0:02:12]}  Kh7 {[%clk 0:02:18]} 18. Bd3 {[%clk 0:02:01]}  Bxd4 {[%clk 0:02:13]} 19. cxd4 {[%clk 0:02:00]}  Qxd4 {[%clk 0:02:13]} 20. Rad1 {[%clk 0:02:01]}  Bf5 {[%clk 0:01:47]} 21. Bb1 {[%clk 0:01:38]}  Qxb2 {[%clk 0:01:27]} 22. Qf3 {[%clk 0:00:45]}  Bg6 {[%clk 0:00:50]} 23. Bc7 {[%clk 0:00:20]}  Rac8 {[%clk 0:00:28]} 24. Ba5 {[%clk 0:00:20]}  f5 {[%clk 0:00:15]} 25. Rxd5 {[%clk 0:00:17]}  Rf7 {[%clk 0:00:10]} 26. h3 {[%clk 0:00:12]}  b6 {[%clk 0:00:10]} 27. Be1 {[%clk 0:00:04]}  Rc1 {[%clk 0:00:10]} 28. Bxe4 {[%clk 0:00:03]}  fxe4 {[%clk 0:00:09]} 29. Qe3 {[%clk 0:00:03]}  Rc2 {[%clk 0:00:07]} 0-1

[Event "January 9 Early 2024"]
[Site "https://www.chess.com"]
[Date "2024.01.11"]
[Round "4"]
[White "Andrews, Todd"]
[Black "Sailer, Mike"]
[Result "0-1"]
[Board "178"]
[TimeControl "180+1"]
[WhiteFideId "2012456"]
[BlackFideId "2012901"]
[WhiteElo "2467"]
[BlackElo "2200"]
[WhiteTeam "USA"]
[BlackTeam "USA"]
[WhiteClock "0:00:02"]
[BlackClock "0:00:08"]

1. e4 {[%clk 0:02:36]}  d5 {[%clk 0:02:45]} 2. exd5 {[%clk 0:02:36]}  Qxd5 {[%clk 0:02:42]} 3. Nc3 {[%clk 0:02:36]}  Qd6 {[%clk 0:02:41]} 4. d4 {[%clk 0:02:35]}  c6 {[%clk 0:02:33]} 5. h3 {[%clk 0:02:35]}  Nf6 {[%clk 0:02:23]} 6. Nf3 {[%clk 0:02:35]}  Bf5 {[%clk 0:02:20]} 7. Bd3 {[%clk 0:02:33]}  Bxd3 {[%clk 0:02:18]} 8. Qxd3 {[%clk 0:02:34]}  e6 {[%clk 0:02:18]} 9. Ne4 {[%clk 0:02:30]}  Nxe4 {[%clk 0:02:10]} 10. Qxe4 {[%clk 0:02:31]}  Nd7 {[%clk 0:02:10]} 11. c3 {[%clk 0:02:30]}  Nf6 {[%clk 0:02:10]} 12. Qe2 {[%clk 0:02:30]}  Qc7 {[%clk 0:02:05]} 13. a4 {[%clk 0:02:17]}  a5 {[%clk 0:01:59]} 14. Ne5 {[%clk 0:02:07]}  Bd6 {[%clk 0:01:51]} 15. O-O {[%clk 0:01:59]}  O-O {[%clk 0:01:49]} 16. f4 {[%clk 0:01:55]}  c5 {[%clk 0:01:23]} 17. dxc5 {[%clk 0:01:27]}  Bxc5+ {[%clk 0:01:22]} 18. Be3 {[%clk 0:01:25]}  Nd5 {[%clk 0:01:19]} 19. Bxc5 {[%clk 0:01:16]}  Qxc5+ {[%clk 0:01:18]} 20. Kh1 {[%clk 0:01:17]}  g6 {[%clk 0:01:06]} 21. Rae1 {[%clk 0:01:09]}  Rad8 {[%clk 0:01:00]} 22. Ng4 {[%clk 0:01:01]}  h5 {[%clk 0:00:53]} 23. Ne5 {[%clk 0:00:47]}  Ne7 {[%clk 0:00:42]} 24. Rf3 {[%clk 0:00:38]}  Nf5 {[%clk 0:00:33]} 25. g4 {[%clk 0:00:37]}  hxg4 {[%clk 0:00:30]} 26. hxg4 {[%clk 0:00:38]}  Nh6 {[%clk 0:00:14]} 27. Rh3 {[%clk 0:00:36]}  Kg7 {[%clk 0:00:12]} 28. f5 {[%clk 0:00:27]}  exf5 {[%clk 0:00:10]} 29. g5 {[%clk 0:00:24]}  Qd5+ {[%clk 0:00:09]} 30. Kh2 {[%clk 0:00:20]}  Ng4+ {[%clk 0:00:09]} 31. Nxg4 {[%clk 0:00:20]}  fxg4 {[%clk 0:00:10]} 32. Qxg4 {[%clk 0:00:21]}  Qd2+ {[%clk 0:00:09]} 33. Qg2 {[%clk 0:00:13]}  Qxe1 {[%clk 0:00:09]} 34. Rg3 {[%clk 0:00:02]}  Rd2 {[%clk 0:00:08]} 0-1

[Event "January 9 Early 2024"]
[Site "https://www.chess.com"]
[Date "2024.01.11"]
[Round "4"]
[White "Zilleruelo Irizarry, Diego"]
[Black "Yushko, Olga"]
[Result "1-0"]
[Board "180"]
[TimeControl "180+1"]
[WhiteFideId "3101460"]
[BlackFideId "14114500"]
[WhiteElo "2313"]
[BlackElo "2118"]
[WhiteTeam "PUR"]
[BlackTeam "UKR"]
[WhiteClock "0:00:08"]
[BlackClock "0:00:01"]

1. e4 {[%clk 0:03:00]}  e6 {[%clk 0:02:58]} 2. d4 {[%clk 0:02:59]}  d5 {[%clk 0:02:53]} 3. exd5 {[%clk 0:02:58]}  exd5 {[%clk 0:02:54]} 4. Bd3 {[%clk 0:02:58]}  Nf6 {[%clk 0:02:53]} 5. h3 {[%clk 0:02:55]}  c5 {[%clk 0:02:53]} 6. dxc5 {[%clk 0:02:55]}  Bxc5 {[%clk 0:02:53]} 7. Nf3 {[%clk 0:02:55]}  O-O {[%clk 0:02:53]} 8. O-O {[%clk 0:02:55]}  Nc6 {[%clk 0:02:52]} 9. c3 {[%clk 0:02:54]}  Ne4 {[%clk 0:02:47]} 10. Nbd2 {[%clk 0:02:52]}  Ng3 {[%clk 0:02:18]} 11. Re1 {[%clk 0:02:46]}  Qb6 {[%clk 0:02:16]} 12. Nd4 {[%clk 0:02:23]}  Nxd4 {[%clk 0:02:15]} 13. cxd4 {[%clk 0:02:24]}  Bxd4 {[%clk 0:02:15]} 14. Qf3 {[%clk 0:02:25]}  Ne4 {[%clk 0:02:01]} 15. Nxe4 {[%clk 0:02:24]}  dxe4 {[%clk 0:02:01]} 16. Rxe4 {[%clk 0:02:24]}  f5 {[%clk 0:01:44]} 17. Rh4 {[%clk 0:02:14]}  Bf6 {[%clk 0:01:39]} 18. Bc4+ {[%clk 0:01:47]}  Be6 {[%clk 0:01:37]} 19. Be3 {[%clk 0:01:46]}  Qd6 {[%clk 0:01:00]} 20. Rd1 {[%clk 0:01:42]}  Qe7 {[%clk 0:00:58]} 21. Bc5 {[%clk 0:01:35]}  Qf7 {[%clk 0:00:51]} 22. Bxe6 {[%clk 0:00:35]}  Qxe6 {[%clk 0:00:52]} 23. Bxf8 {[%clk 0:00:35]}  Bxh4 {[%clk 0:00:52]} 24. Bb4 {[%clk 0:00:28]}  Rb8 {[%clk 0:00:42]} 25. Qf4 {[%clk 0:00:23]}  Bxf2+ {[%clk 0:00:28]} 26. Qxf2 {[%clk 0:00:19]}  Qxa2 {[%clk 0:00:24]} 27. Bc3 {[%clk 0:00:17]}  Qf7 {[%clk 0:00:13]} 28. Qxa7 {[%clk 0:00:16]}  Re8 {[%clk 0:00:12]} 29. Qd4 {[%clk 0:00:14]}  h6 {[%clk 0:00:07]} 30. Rf1 {[%clk 0:00:13]}  Re7 {[%clk 0:00:03]} 31. g4 {[%clk 0:00:13]}  Rd7 {[%clk 0:00:01]} 32. Qe5 {[%clk 0:00:08]} 1-0

[Event "January 9 Early 2024"]
[Site "https://www.chess.com"]
[Date "2024.01.11"]
[Round "4"]
[White "Tuncer, Tuna"]
[Black "Kukhmazov, Arsen"]
[Result "0-1"]
[Board "184"]
[TimeControl "180+1"]
[WhiteFideId "6349269"]
[BlackFideId "24108260"]
[WhiteElo "2621"]
[BlackElo "2907"]
[WhiteTeam "TUR"]
[BlackTeam "FID"]
[WhiteClock "0:00:01"]
[BlackClock "0:00:35"]

1. e4 {[%clk 0:03:00]}  c6 {[%clk 0:02:56]} 2. Nf3 {[%clk 0:02:57]}  d5 {[%clk 0:02:57]} 3. Nc3 {[%clk 0:02:58]}  Bg4 {[%clk 0:02:56]} 4. h3 {[%clk 0:02:57]}  Bh5 {[%clk 0:02:57]} 5. exd5 {[%clk 0:02:55]}  cxd5 {[%clk 0:02:58]} 6. Bb5+ {[%clk 0:02:54]}  Nc6 {[%clk 0:02:58]} 7. g4 {[%clk 0:02:54]}  Bg6 {[%clk 0:02:58]} 8. Ne5 {[%clk 0:02:55]}  Rc8 {[%clk 0:02:58]} 9. h4 {[%clk 0:02:53]}  f6 {[%clk 0:02:58]} 10. Nxg6 {[%clk 0:02:50]}  hxg6 {[%clk 0:02:59]} 11. d4 {[%clk 0:02:44]}  e6 {[%clk 0:03:00]} 12. Qd3 {[%clk 0:02:41]}  Kf7 {[%clk 0:03:00]} 13. Bxc6 {[%clk 0:02:38]}  bxc6 {[%clk 0:03:01]} 14. Ne2 {[%clk 0:02:37]}  Bd6 {[%clk 0:02:53]} 15. Be3 {[%clk 0:02:31]}  Ne7 {[%clk 0:02:51]} 16. Kf1 {[%clk 0:02:17]}  c5 {[%clk 0:02:50]} 17. dxc5 {[%clk 0:01:55]}  Bxc5 {[%clk 0:02:51]} 18. c3 {[%clk 0:01:56]}  Qb6 {[%clk 0:02:47]} 19. Bxc5 {[%clk 0:01:55]}  Rxc5 {[%clk 0:02:46]} 20. Qd2 {[%clk 0:01:35]}  Rc4 {[%clk 0:02:45]} 21. f3 {[%clk 0:01:34]}  e5 {[%clk 0:02:41]} 22. Kg2 {[%clk 0:01:30]}  Rhc8 {[%clk 0:02:09]} 23. h5 {[%clk 0:01:27]}  gxh5 {[%clk 0:02:08]} 24. Rxh5 {[%clk 0:01:25]}  d4 {[%clk 0:02:09]} 25. Rh7 {[%clk 0:00:48]}  dxc3 {[%clk 0:02:02]} 26. Nxc3 {[%clk 0:00:48]}  Qc6 {[%clk 0:01:52]} 27. Rd1 {[%clk 0:00:36]}  Rxg4+ {[%clk 0:01:46]} 28. Kh2 {[%clk 0:00:13]}  Qxf3 {[%clk 0:01:43]} 29. Rh3 {[%clk 0:00:10]}  Qxh3+ {[%clk 0:01:14]} 30. Kxh3 {[%clk 0:00:11]}  f5 {[%clk 0:01:14]} 31. Qd8 {[%clk 0:00:08]}  Rxd8 {[%clk 0:01:12]} 32. Rxd8 {[%clk 0:00:09]}  Rb4 {[%clk 0:01:03]} 33. b3 {[%clk 0:00:09]}  Rb7 {[%clk 0:01:03]} 34. Kg3 {[%clk 0:00:06]}  g5 {[%clk 0:01:00]} 35. Kf3 {[%clk 0:00:05]}  e4+ {[%clk 0:00:44]} 36. Ke3 {[%clk 0:00:05]}  Ke6 {[%clk 0:00:44]} 37. Rf8 {[%clk 0:00:03]}  Ke5 {[%clk 0:00:43]} 38. Ne2 {[%clk 0:00:03]}  Rd7 {[%clk 0:00:38]} 39. Kf2 {[%clk 0:00:01]}  f4 {[%clk 0:00:38]} 40. Rf7 {[%clk 0:00:01]}  Ke6 {[%clk 0:00:38]} 41. Rh7 {[%clk 0:00:01]}  Rd2 {[%clk 0:00:34]} 42. Ke1 {[%clk 0:00:01]}  Rxa2 {[%clk 0:00:34]} 43. Nd4+ {[%clk 0:00:01]}  Kf6 {[%clk 0:00:35]} 0-1

[Event "January 9 Early 2024"]
[Site "https://www.chess.com"]
[Date "2024.01.11"]
[Round "4"]
[White "De Winter, Arthur"]
[Black "Drozdowski, Kacper"]
[Result "0-1"]
[Board "190"]
[TimeControl "180+1"]
[WhiteFideId "1069020"]
[BlackFideId "1136720"]
[WhiteElo "2804"]
[BlackElo "2981"]
[WhiteTeam "NED"]
[BlackTeam "POL"]
[WhiteClock "0:00:03"]
[BlackClock "0:00:14"]

1. e4 {[%clk 0:03:00]}  c5 {[%clk 0:02:59]} 2. Nf3 {[%clk 0:02:45]}  e6 {[%clk 0:02:59]} 3. b3 {[%clk 0:02:42]}  b6 {[%clk 0:02:58]} 4. Bb2 {[%clk 0:02:41]}  Bb7 {[%clk 0:02:59]} 5. Nc3 {[%clk 0:02:41]}  d6 {[%clk 0:02:55]} 6. d4 {[%clk 0:02:40]}  cxd4 {[%clk 0:02:55]} 7. Nxd4 {[%clk 0:02:41]}  a6 {[%clk 0:02:52]} 8. Qe2 {[%clk 0:02:38]}  Qc7 {[%clk 0:02:49]} 9. O-O-O {[%clk 0:02:37]}  Nf6 {[%clk 0:02:49]} 10. g4 {[%clk 0:02:35]}  Be7 {[%clk 0:02:47]} 11. g5 {[%clk 0:02:34]}  Nfd7 {[%clk 0:02:48]} 12. h4 {[%clk 0:02:27]}  Nc6 {[%clk 0:02:46]} 13. Nxc6 {[%clk 0:02:21]}  Bxc6 {[%clk 0:02:30]} 14. Rg1 {[%clk 0:02:19]}  b5 {[%clk 0:02:20]} 15. Qe3 {[%clk 0:02:08]}  Qb6 {[%clk 0:02:14]} 16. Qf4 {[%clk 0:02:00]}  a5 {[%clk 0:02:04]} 17. Rxd6 {[%clk 0:01:40]}  Bxd6 {[%clk 0:02:01]} 18. Qxd6 {[%clk 0:01:41]}  b4 {[%clk 0:01:22]} 19. Nb5 {[%clk 0:01:31]}  Bxb5 {[%clk 0:01:19]} 20. Qxb6 {[%clk 0:01:31]}  Nxb6 {[%clk 0:01:18]} 21. Bxb5+ {[%clk 0:01:32]}  Ke7 {[%clk 0:01:12]} 22. Bxg7 {[%clk 0:01:24]}  Rhc8 {[%clk 0:01:13]} 23. Bf6+ {[%clk 0:00:50]}  Kf8 {[%clk 0:01:03]} 24. Kd2 {[%clk 0:00:41]}  Rc5 {[%clk 0:01:00]} 25. Bd3 {[%clk 0:00:40]}  e5 {[%clk 0:00:57]} 26. f4 {[%clk 0:00:27]}  Nd7 {[%clk 0:00:54]} 27. f5 {[%clk 0:00:14]}  Rc6 {[%clk 0:00:44]} 28. Bc4 {[%clk 0:00:09]}  Nxf6 {[%clk 0:00:43]} 29. gxf6 {[%clk 0:00:10]}  Rxf6 {[%clk 0:00:43]} 30. Bd5 {[%clk 0:00:11]}  Rc8 {[%clk 0:00:42]} 31. a3 {[%clk 0:00:04]}  bxa3 {[%clk 0:00:31]} 32. Ra1 {[%clk 0:00:05]}  Rh6 {[%clk 0:00:31]} 33. Rxa3 {[%clk 0:00:05]}  Rc5 {[%clk 0:00:31]} 34. c4 {[%clk 0:00:02]}  Rxh4 {[%clk 0:00:30]} 35. Ra1 {[%clk 0:00:02]}  Rh3 {[%clk 0:00:28]} 36. Kc2 {[%clk 0:00:02]}  h5 {[%clk 0:00:28]} 37. Rg1 {[%clk 0:00:02]}  h4 {[%clk 0:00:23]} 38. f6 {[%clk 0:00:02]}  Rf3 {[%clk 0:00:21]} 39. Rg4 {[%clk 0:00:03]}  Rf4 {[%clk 0:00:20]} 40. Rxf4 {[%clk 0:00:01]}  exf4 {[%clk 0:00:20]} 41. e5 {[%clk 0:00:02]}  Rxd5 {[%clk 0:00:14]} 42. cxd5 {[%clk 0:00:03]} 0-1